bitfinex-derivatives/quotes_ETHF0:USTF0_20250114
["timestamp","ask_amount","ask_price","bid_price","bid_amount"]
[1736835794528,3.2078,3171.6,3171.5,2.83940187]
[1736835795123,3.2078,3171.6,3171.5,43.63940187]
[1736835799030,3.2078,3171.6,3171.5,41.11548]
[1736835799730,3.7426,3171.6,3171.5,41.11548]
[1736835800230,3.7426,3171.6,3171.5,43.63940187]
[1736835801131,3.2078,3171.6,3171.5,43.63940187]
[1736835806342,3.20548841,3171.6,3171.5,41.11548]
[1736835806541,3.20548841,3171.6,3171.5,43.63940187]
[1736835811447,3.55359062,3171.8,3171.7,0.31546]
[1736835811743,3.2576,3171.8,3171.7,0.31546]
[1736835812136,3.2576,3171.8,3171.7,41.11546]
[1736835814235,1.0946,3171.8,3171.7,41.11546]
[1736835814748,3.2078,3172.0,3171.9,0.31544]
[1736835814940,3.2078,3172.0,3171.9,2.83936187]
[1736835815441,3.2078,3172.0,3171.9,43.63936187]
[1736835816146,1.0052,3172.1,3172.0,0.31543]
[1736835816734,2.163,3172.3,3172.0,40.8]
[1736835816938,2.163,3172.3,3172.2,2.83933187]
[1736835817643,2.163,3172.3,3172.2,43.63933187]
[1736835818241,2.75533,3173.4,3172.2,48.48802187]
[1736835818242,3.2078,3173.3,3172.2,48.48802187]
[1736835818448,4.2788,3173.3,3173.2,2.83923187]
[1736835818641,4.57461871,3173.3,3173.2,2.83923187]
[1736835819944,4.02601871,3173.3,3173.2,43.63923187]
[1736835820142,3.7302,3173.3,3173.2,43.63923187]
[1736835825248,2.75533,3173.4,3173.2,43.32392187]
[1736835825543,2.75533,3173.4,3173.3,0.3153]
[1736835826053,2.75533,3173.4,3173.3,41.7382]
[1736835827253,2.75533,3173.4,3173.3,44.26212187]
[1736835827550,2.75533,3173.4,3173.3,41.7382]
[1736835828345,2.75533,3173.4,3173.3,44.946]
[1736835829653,2.75533,3173.4,3173.3,47.46992187]
[1736835830050,2.75533,3173.4,3173.3,44.946]
[1736835830250,2.75533,3173.4,3173.3,47.46992187]
[1736835830750,2.75533,3173.4,3173.3,44.946]
[1736835831449,2.75533,3173.4,3173.3,47.46992187]
[1736835832452,2.75533,3173.4,3173.3,52.46992187]
[1736835832650,1.2332,3174.0,3173.9,2.83916187]
[1736835833453,0.639,3174.0,3173.9,43.63916187]
[1736835834148,1.2332,3174.3,3174.2,0.31521]
[1736835834354,1.2332,3174.3,3174.2,2.83913187]
[1736835835050,1.2332,3174.3,3174.2,43.63913187]
[1736835842462,1.2332,3174.3,3174.2,46.84693187]
[1736835844854,1.2332,3174.3,3174.2,43.63913187]
[1736835847058,1.2332,3174.3,3174.2,43.32392187]
[1736835847254,1.2332,3174.3,3174.2,43.63913187]
[1736835849758,1.2332,3174.3,3174.2,40.8]
[1736835849967,10.92012187,3174.3,3173.4,3.2078]
[1736835850178,0.31525,3173.8,3173.4,3.52308]
[1736835850368,2.3696,3173.7,3173.4,0.31528]
[1736835850957,2.3696,3173.7,3173.6,40.8]
[1736835851755,2.3696,3173.7,3173.6,43.32392187]
[1736835852559,2.3696,3173.7,3173.6,43.63919187]
[1736835853262,2.45866169,3173.8,3173.6,43.32392187]
[1736835853461,2.163,3173.8,3173.7,1.55426]
[1736835854065,2.163,3173.8,3173.7,42.35426]
[1736835856162,2.4364,3174.1,3174.0,0.31523]
[1736835856357,2.4364,3174.1,3174.0,2.83915187]
[1736835856865,2.4364,3174.1,3174.0,43.63915187]
[1736835858264,3.2078,3175.8,3174.0,45.84784374]
[1736835858466,1.6624,3175.8,3175.7,2.83898187]
[1736835858858,0.7898,3176.2,3175.7,2.52392187]
[1736835859057,0.7898,3176.2,3176.1,43.63894187]
[1736835859560,0.001,3176.2,3176.1,41.11502]
[1736835861559,0.001,3176.2,3176.1,40.8]
[1736835863770,0.001,3176.2,3176.1,41.11502]
[1736835867971,0.001,3176.2,3176.1,40.8]
[1736835868169,0.31601,3176.2,3176.1,40.8]
[1736835868868,0.001,3176.2,3176.1,40.8]
[1736835869664,0.31601,3176.2,3176.1,40.8]
[1736835870067,0.001,3176.2,3176.1,40.8]
[1736835871468,0.31601,3176.2,3176.1,40.8]
[1736835873275,0.001,3176.2,3176.1,40.8]
[1736835873678,0.31601,3176.2,3176.1,40.8]
[1736835874679,0.001,3176.2,3176.1,40.8]
[1736835875081,0.31601,3176.2,3176.1,47.30056891]
[1736835878673,0.31601,3176.2,3176.1,6.50056891]
[1736835879780,0.001,3176.2,3176.1,47.30056891]
[1736835880474,0.31601,3176.2,3176.1,47.30056891]
[1736835880877,0.001,3176.2,3176.1,47.30056891]
[1736835882975,0.31601,3176.2,3176.1,47.30056891]
[1736835884882,3.2088,3176.2,3176.1,47.30056891]
[1736835885381,3.2088,3176.2,3176.1,47.61558891]
[1736835887082,0.001,3176.2,3176.1,47.61558891]
[1736835895486,0.001,3176.2,3176.1,48.86858891]
[1736835900593,3.2078,3176.9,3176.1,48.55356891]
[1736835900792,3.2078,3176.9,3176.8,2.83887187]
[1736835901098,3.2078,3176.9,3176.8,2.52392187]
[1736835901296,3.2078,3176.9,3176.8,43.32392187]
[1736835902801,3.2078,3176.9,3176.8,43.63887187]
[1736835903105,3.2078,3177.4,3176.8,47.78472187]
[1736835903298,3.2078,3177.4,3177.3,2.83881187]
[1736835904010,3.2078,3177.4,3177.3,43.63881187]
[1736835906007,1.94904,3177.9,3177.3,43.32392187]
[1736835906008,5.15684,3177.9,3177.3,43.32392187]
[1736835906209,5.15684,3177.9,3177.6,2.52392187]
[1736835906512,4.842,3177.9,3177.7,0.31485]
[1736835906805,3.2078,3177.9,3177.8,0.31485]
[1736835907001,1.6788,3178.4,3178.2,0.31481]
[1736835907202,0.31474,3178.9,3178.3,0.3148]
[1736835907507,0.31474,3178.9,3178.8,40.8]
[1736835908499,0.59615482,3179.2,3178.8,40.8]
[1736835908700,0.31473,3179.0,3178.8,40.8]
[1736835908899,0.31474,3179.0,3178.8,40.8]
[1736835909108,1.16703,3179.1,3178.8,40.8]
[1736835909312,0.8523,3179.1,3178.8,40.8]
[1736835909610,0.8523,3179.1,3179.0,2.52392187]
[1736835910203,0.8523,3179.1,3179.0,43.32392187]
[1736835910699,0.8451,3179.3,3179.0,43.32392187]
[1736835911110,0.8451,3179.3,3179.0,43.63864187]
[1736835911810,0.8451,3179.3,3179.1,0.31472]
[1736835912012,0.8451,3179.3,3179.0,43.63865187]
[1736835912309,0.8451,3179.3,3179.1,0.31472]
[1736835912611,0.8451,3179.3,3179.0,43.32392187]
[1736835913010,0.8451,3179.3,3179.0,43.63865187]
[1736835913306,0.8451,3179.3,3179.0,43.32392187]
[1736835914403,0.8451,3179.3,3179.0,43.63865187]
[1736835915209,0.8451,3179.3,3179.0,2.83865187]
[1736835915403,0.8451,3179.3,3179.1,0.31472]
[1736835915601,0.8451,3179.3,3179.2,0.31471]
[1736835915798,0.8451,3179.3,3179.2,40.8]
[1736835916212,0.8406,3179.5,3179.4,0.31469]
[1736835916405,0.8406,3179.5,3179.4,2.83861187]
[1736835916804,0.8406,3179.5,3179.4,43.63861187]
[1736835917205,3.2078,3179.8,3179.4,43.32392187]
[1736835917502,3.2078,3179.8,3179.7,2.52392187]
[1736835918207,3.2078,3179.8,3179.7,43.32392187]
[1736835919006,1.5969,3180.0,3179.7,43.32392187]
[1736835919717,1.5969,3180.0,3179.8,0.31465]
[1736835920006,1.5969,3180.0,3179.7,43.63858187]
[1736835920711,0.31465,3179.9,3179.7,43.32392187]
[1736835920912,1.91154,3180.0,3179.7,43.32392187]
[1736835921107,1.5969,3180.0,3179.7,43.32392187]
[1736835921309,1.5969,3180.0,3179.7,43.63858187]
[1736835921507,1.5969,3180.0,3179.7,49.82449078]
[1736835921708,1.5969,3180.0,3179.7,50.13915078]
[1736835922412,1.5969,3180.0,3179.7,49.82449078]
[1736835923112,1.5969,3180.0,3179.7,9.02449078]
[1736835923310,1.5969,3180.0,3179.7,9.33915078]
[1736835923506,1.5969,3180.0,3179.8,0.31465]
[1736835923706,0.7896,3180.0,3179.9,41.11464]
[1736835924710,4.058,3180.3,3180.2,0.31461]
[1736835924906,4.058,3180.3,3180.2,2.83853187]
[1736835925113,3.2078,3180.3,3180.2,2.83853187]
[1736835925311,3.2078,3180.3,3180.2,43.32392187]
[1736835925609,1.99598,3180.6,3180.2,43.32392187]
[1736835925910,1.6814,3180.6,3180.2,43.63853187]
[1736835926408,1.99598,3180.6,3180.2,43.32392187]
[1736835926608,1.6814,3180.6,3180.2,43.32392187]
[1736835926814,1.99598,3180.6,3180.2,43.32392187]
[1736835927007,1.6814,3180.6,3180.2,43.32392187]
[1736835927307,1.99598,3180.6,3180.2,43.32392187]
[1736835927717,1.6814,3180.6,3180.5,2.52392187]
[1736835928012,0.8312,3180.6,3180.5,2.83850187]
[1736835928210,3.2078,3180.7,3180.6,0.31457]
[1736835928416,3.2078,3180.7,3180.6,41.11457]
[1736835929211,3.2078,3181.4,3180.6,45.2568]
[1736835929408,3.2078,3181.4,3181.1,2.52392187]
[1736835929409,0.8618,3181.3,3181.1,2.52392187]
[1736835930503,0.8618,3181.3,3181.1,2.83844187]
[1736835931312,0.8618,3181.3,3181.1,2.52392187]
[1736835931514,1.6071,3181.6,3181.2,0.31452]
[1736835931716,1.92158,3181.6,3181.4,2.52392187]
[1736835931915,1.6071,3181.6,3181.4,2.52392187]
[1736835932813,1.6071,3181.6,3181.4,2.83841187]
[1736835933121,1.6071,3181.6,3181.4,2.52392187]
[1736835933920,1.6071,3181.6,3181.5,40.8]
[1736835934119,0.8263,3181.6,3181.5,40.8]
[1736835936011,1.14078,3181.6,3181.5,40.8]
[1736835936715,1.14078,3181.6,3181.5,47.30056891]
[1736835936913,6.14078,3181.6,3181.5,47.30056891]
[1736835937419,1.14078,3181.6,3181.5,47.30056891]
[1736835938116,6.14078,3181.6,3181.5,47.30056891]
[1736835942213,6.38028484,3181.6,3181.5,3.74256891]
[1736835942423,6.7259505,3181.6,3181.5,1.15236891]
[1736835942623,1.10073,3181.5,3180.4,3.2078]
[1736835942819,3.52236,3180.8,3180.4,3.2078]
[1736835943319,3.52236,3180.8,3180.7,40.8]
[1736835944221,3.52236,3180.8,3180.4,3.2078]
[1736835945223,3.52236,3180.8,3180.7,40.8]
[1736835946218,3.52236,3180.8,3180.4,3.2078]
[1736835946426,0.31458,3180.6,3180.4,3.2078]
[1736835947319,0.31458,3180.6,3180.5,40.8]
[1736835948219,3.52238,3180.6,3180.5,40.8]
[1736835948419,3.52238,3180.6,3180.2,3.2078]
[1736835948420,0.31459,3180.5,3180.2,3.2078]
[1736835949028,5.73172187,3180.6,3180.2,3.2078]
[1736835949216,0.31461,3180.2,3180.1,0.8007]
[1736835949419,3.2078,3180.6,3180.1,0.8007]
[1736835949619,3.2078,3180.6,3180.3,2.52392187]
[1736835949824,3.2078,3180.6,3180.5,40.8]
[1736835950423,1.94087,3180.7,3180.3,3.31112187]
[1736835950728,0.31458,3180.6,3180.3,3.31112187]
[1736835951122,1.6263,3180.7,3180.3,3.31112187]
[1736835951318,0.00316046,3180.6,3180.3,3.31112187]
[1736835951827,0.00316046,3180.6,3180.5,40.8]
[1736835952434,0.00316046,3180.6,3180.3,3.31112187]
[1736835952728,0.31774046,3180.6,3180.3,3.31112187]
[1736835952923,0.00316046,3180.6,3180.1,0.8007]
[1736835953130,0.00316046,3180.6,3180.2,1.10591]
[1736835953325,0.00316046,3180.6,3180.5,40.8]
[1736835953518,0.31773046,3180.6,3180.5,40.8]
[1736835954425,0.31773046,3180.6,3180.2,0.7913]
[1736835955430,0.31773046,3180.6,3180.2,1.10591]
[1736835955631,0.00316046,3180.6,3180.3,2.52392187]
[1736835955832,0.00316046,3180.6,3180.5,0.31458]
[1736835958533,0.00316046,3180.6,3180.4,3.52239]
[1736835958729,0.00316046,3180.6,3180.5,0.31458]
[1736835959932,0.00316046,3180.6,3180.5,41.11458]
[1736835961640,0.00316046,3180.6,3180.5,40.8]
[1736835961834,0.00316046,3180.6,3180.5,41.11458]
[1736835962135,3.52234,3181.0,3180.5,41.11458]
[1736835962335,3.2078,3181.0,3180.6,2.52392187]
[1736835962531,3.2078,3181.0,3180.9,2.83846187]
[1736835962930,3.2078,3181.0,3180.9,2.52392187]
[1736835963128,3.2078,3181.0,3180.9,43.32392187]
[1736835963338,3.2078,3181.0,3180.9,44.15992187]
[1736835964232,5.66e-06,3181.7,3181.6,0.31448]
[1736835964539,3.2078,3183.9,3181.8,2.52392187]
[1736835964732,3.2078,3183.9,3183.5,2.52392187]
[1736835964937,0.44176566,3183.6,3183.5,2.52392187]
[1736835965237,3.2078,3183.9,3183.5,2.52392187]
[1736835965238,0.674749,3183.8,3183.7,0.31427]
[1736835965429,0.44176566,3183.8,3183.7,44.32207]
[1736835966039,6.04970932,3184.4,3183.9,0.31424]
[1736835966238,6.04970932,3184.4,3183.9,2.83817187]
[1736835966641,3.2078,3184.9,3184.3,2.52392187]
[1736835967029,3.2078,3184.9,3184.2,3.2078]
[1736835967542,0.31416,3184.8,3184.2,3.2078]
[1736835968343,3.2078,3184.5,3183.7,5.73172187]
[1736835968543,3.2078,3184.5,3183.7,6.04598187]
[1736835968841,3.2078,3184.5,3183.7,5.73172187]
[1736835969045,3.2078,3184.5,3183.7,6.04598187]
[1736835969441,3.2078,3184.5,3183.7,5.73172187]
[1736835969743,3.52199,3184.5,3183.7,6.04598187]
[1736835969944,3.2078,3184.5,3184.3,40.8]
[1736835970741,3.2078,3184.5,3184.3,43.32392187]
[1736835971638,3.2078,3184.5,3184.3,40.8]
[1736835972435,0.3142,3184.4,3183.8,0.8562]
[1736835972636,0.8585,3184.4,3183.7,3.2078]
[1736835973042,0.31422,3184.2,3183.7,3.2078]
[1736835973343,0.31423,3184.2,3183.7,3.2078]
[1736835973545,0.31424,3184.0,3183.8,40.8]
[1736835974244,0.8735,3184.3,3183.8,40.8]
[1736835974444,0.31425,3183.9,3183.8,40.8]
[1736835974641,0.31425,3183.9,3183.7,3.2078]
[1736835975438,0.23554096,3184.0,3183.7,3.2078]
[1736835975642,0.54978096,3184.0,3183.9,40.8]
[1736835976143,0.31424,3184.0,3183.9,40.8]
[1736835976540,0.31424,3184.0,3183.7,3.2078]
[1736835977444,0.31423,3184.1,3183.7,3.2078]
[1736835977641,5.73172187,3183.9,3183.2,3.2078]
[1736835977848,0.31431,3183.4,3182.8,5.73172187]
[1736835978046,0.31431,3183.3,3182.8,5.73172187]
[1736835978243,0.7981,3183.3,3182.8,5.73172187]
[1736835979646,0.31433,3183.1,3182.8,5.73172187]
[1736835980142,0.31433,3183.1,3183.0,40.8]
[1736835980549,1.03021926,3183.3,3183.0,40.8]
[1736835981352,1.03021926,3183.3,3183.1,2.52392187]
[1736835981742,0.7981,3183.3,3183.2,3.2078]
[1736835982154,5.3238,3184.0,3183.2,3.2078]
[1736835982348,0.8133,3183.9,3183.2,3.2078]
[1736835982551,0.31427,3183.7,3183.2,3.2078]
[1736835982851,0.8133,3183.9,3183.6,40.8]
[1736835983149,0.54985689,3183.7,3183.6,40.48547525]
[1736835983455,0.23558689,3183.7,3182.7,3.2078]
[1736835983645,3.2078,3183.4,3182.8,2.52392187]
[1736835983947,0.31431,3183.3,3182.8,2.52392187]
[1736835984656,0.8293,3183.3,3182.8,2.52392187]
[1736835984850,0.8293,3183.3,3182.7,3.2078]
[1736835985042,0.31435,3182.9,3182.5,2.52392187]
[1736835985250,3.2078,3183.0,3182.5,2.52392187]
[1736835985443,0.31436,3182.8,3182.3,3.2078]
[1736835985951,0.31437,3182.7,3182.3,3.2078]
[1736835986144,0.8378,3182.9,3182.3,3.2078]
[1736835986750,0.3144,3182.4,3182.3,3.2078]
[1736835987151,0.3144,3182.4,3181.9,5.73172187]
[1736835987349,0.8378,3182.9,3181.9,5.73172187]
[1736835987548,0.31442,3182.2,3181.9,5.73172187]
[1736835987953,3.2078,3182.4,3181.9,3.2078]
[1736835988255,0.31444,3182.0,3181.9,3.2078]
[1736835989155,0.31444,3182.0,3181.9,2.89323271]
[1736835990154,0.23689276,3182.0,3181.9,43.69323271]
[1736835990955,0.31443,3182.1,3181.9,43.69323271]
[1736835992056,3.5222,3182.4,3181.9,46.21715458]
[1736835992361,3.2078,3182.4,3181.9,46.21715458]
[1736835992657,3.5222,3182.4,3181.9,46.21715458]
[1736835992959,0.23201349,3182.3,3181.9,46.21715458]
[1736835994163,0.23201349,3182.3,3181.9,47.03145458]
[1736835995056,0.23201349,3182.3,3181.9,6.23145458]
[1736835995258,3.2078,3182.4,3181.9,6.23145458]
[1736835995455,3.2078,3182.4,3182.3,40.8]
[1736835995661,3.5222,3182.4,3182.3,40.8]
[1736835997553,0.31444,3182.0,3181.9,2.89323271]
[1736835997953,3.2078,3182.4,3181.9,2.89323271]
[1736835997954,0.31443,3182.1,3181.9,2.89323271]
[1736835998554,0.31443,3182.1,3182.0,40.8]
[1736836003074,4.8276,3182.8,3182.0,40.8]
[1736836003255,4.018,3182.8,3182.0,44.0078]
[1736836003459,0.31438,3182.6,3182.2,2.52392187]
[1736836003660,0.3144,3182.4,3182.2,2.52392187]
[1736836003861,4.018,3182.8,3182.2,2.52392187]
[1736836003862,0.31441,3182.3,3182.2,2.52392187]
[1736836004162,0.31441,3182.3,3182.2,40.8]
[1736836005868,0.31441,3182.3,3181.7,0.8224]
[1736836005869,0.31446,3181.8,3181.7,0.8224]
[1736836006060,0.31447,3181.7,3181.6,3.2078]
[1736836006260,0.819,3181.7,3181.6,3.2078]
[1736836006455,0.31446,3181.8,3181.6,3.2078]
[1736836006771,0.31446,3181.8,3181.7,40.8]
[1736836008466,0.55540801,3181.8,3181.7,40.8]
[1736836012269,0.819,3182.3,3181.7,40.8]
[1736836012467,0.819,3182.3,3181.9,2.52392187]
[1736836012668,1.13341,3182.3,3181.9,2.52392187]
[1736836012866,1.13341,3182.3,3182.2,40.8]
[1736836013668,0.819,3182.3,3182.2,40.8]
[1736836013869,1.13341,3182.3,3182.2,40.8]
[1736836014773,0.819,3182.3,3182.2,40.8]
[1736836015268,3.2078,3182.4,3182.2,40.8]
[1736836015568,0.31441,3182.3,3182.2,40.8]
[1736836017877,3.5222,3182.4,3182.2,40.8]
[1736836018177,3.5222,3182.4,3182.0,0.8377]
[1736836018469,3.5222,3182.4,3182.3,40.8]
[1736836018872,0.8931,3182.6,3182.3,40.8]
[1736836018873,0.31439,3182.5,3182.3,40.8]
[1736836019174,0.8931,3182.6,3182.3,40.8]
[1736836019373,0.3144,3182.4,3182.3,40.8]
[1736836020278,0.31443,3182.1,3181.9,2.52392187]
[1736836020873,0.31442,3182.2,3181.9,2.52392187]
[1736836021171,0.31442,3182.2,3182.1,40.8]
[1736836022177,3.44541828,3182.4,3181.7,3.2078]
[1736836022375,0.31446,3181.8,3181.7,3.2078]
[1736836023172,0.31446,3181.8,3181.7,44.0078]
[1736836023475,0.86,3182.1,3181.7,44.0078]
[1736836023676,0.31444,3182.0,3181.7,44.0078]
[1736836023982,3.44541828,3182.4,3181.7,44.0078]
[1736836023983,0.31442,3182.2,3181.7,44.0078]
[1736836024378,3.44541828,3182.4,3181.7,44.0078]
[1736836024580,0.31442,3182.2,3181.7,44.0078]
[1736836025376,0.31444,3182.0,3181.7,44.0078]
[1736836025580,0.31443,3182.1,3181.7,44.0078]
[1736836025880,3.44541828,3182.4,3181.9,2.52392187]
[1736836026180,0.31442,3182.2,3181.9,2.52392187]
[1736836026381,0.31442,3182.2,3181.7,44.0078]
[1736836027279,0.23761828,3182.4,3181.7,44.0078]
[1736836027778,0.31446,3181.8,3181.7,44.0078]
[1736836027973,3.44541828,3182.4,3181.7,44.0078]
[1736836028177,0.31445,3181.9,3181.7,3.2078]
[1736836028377,0.8367,3181.8,3181.7,3.2078]
[1736836028587,1.15116,3181.8,3181.7,3.2078]
[1736836028778,0.8367,3181.8,3181.7,44.0078]
[1736836029978,1.15116,3181.8,3181.7,44.0078]
[1736836032182,1.15116,3181.8,3181.7,40.8]
[1736836035686,0.31449,3181.5,3181.4,3.2078]
[1736836036182,0.31449,3181.5,3180.7,3.2078]
[1736836036183,0.31455,3180.9,3180.7,3.2078]
[1736836036383,2.52392187,3181.5,3180.7,3.2078]
[1736836036580,0.31454,3181.0,3180.7,3.2078]
[1736836036789,1.21495,3180.9,3180.7,3.2078]
[1736836037083,0.9004,3180.9,3180.5,0.8861]
[1736836037279,0.31456,3180.7,3180.1,5.73172187]
[1736836037486,3.2078,3180.7,3180.1,5.73172187]
[1736836037683,0.31458,3180.6,3180.1,5.73172187]
[1736836037883,3.2078,3180.7,3180.1,5.73172187]
[1736836038085,0.31457,3180.6,3180.1,3.2078]
[1736836038379,0.3146,3180.4,3180.1,3.2078]
[1736836038782,0.31457,3180.6,3179.8,2.52392187]
[1736836038977,0.3146,3180.4,3179.8,2.52392187]
[1736836039582,2.52392187,3180.6,3179.7,4.0939]
[1736836039885,3.2078,3180.3,3179.7,0.8861]
[1736836040082,0.31463,3180.1,3179.7,0.8861]
[1736836040476,0.31463,3180.1,3180.0,40.8]
[1736836041183,0.31466,3179.8,3179.3,3.2078]
[1736836042188,0.31466,3179.8,3179.7,40.8]
[1736836042688,0.8598,3180.1,3179.7,40.8]
[1736836042879,0.31465,3179.9,3179.7,40.8]
[1736836044191,0.8598,3180.1,3179.7,40.8]
[1736836044490,0.31465,3179.8,3179.7,40.8]
[1736836045185,0.31465,3179.9,3179.7,40.8]
[1736836045600,0.8598,3180.1,3179.7,40.8]
[1736836045601,3.52245,3179.8,3179.7,40.8]
[1736836047189,3.7628449,3179.8,3179.7,40.8]
[1736836049392,3.4481949,3179.8,3179.7,40.8]
[1736836049596,3.7628449,3179.8,3179.7,40.8]
[1736836051094,3.52245,3179.8,3179.7,40.8]
[1736836051388,0.31469,3179.5,3179.3,3.2078]
[1736836051593,1.19329,3179.4,3179.3,3.2078]
[1736836052198,0.31472,3179.2,3178.9,0.8412]
[1736836052393,0.31473,3179.1,3178.9,0.8412]
[1736836052591,0.31473,3179.0,3178.7,3.2078]
[1736836052796,0.31473,3179.0,3178.9,40.8]
[1736836055395,3.52253,3179.0,3178.9,40.8]
[1736836055695,3.52253,3179.0,3178.5,0.8174]
[1736836055696,3.2078,3179.0,3178.5,0.8174]
[1736836055992,3.2078,3179.0,3178.3,3.2078]
[1736836055993,0.31479,3178.5,3178.3,3.2078]
[1736836056389,0.8475,3178.4,3178.3,3.2078]
[1736836056585,0.8475,3178.4,3178.3,44.0078]
[1736836057796,0.31476,3178.8,3178.3,44.0078]
[1736836057989,0.31476,3178.8,3178.4,0.8378]
[1736836058895,0.31476,3178.7,3178.4,0.8378]
[1736836059193,0.31475,3178.8,3178.4,0.8378]
[1736836059399,0.31477,3178.7,3178.4,0.8378]
[1736836059998,0.31478,3178.6,3178.4,0.8378]
[1736836060201,0.31477,3178.7,3178.4,0.8378]
[1736836061004,2.03665,3178.9,3178.4,0.8378]
[1736836061213,1.16635,3178.9,3178.4,0.8378]
[1736836061497,0.8516,3178.9,3178.4,0.8378]
[1736836061704,1.16635,3178.9,3178.4,0.8378]
[1736836061905,0.31476,3178.8,3178.4,0.8378]
[1736836062203,0.31475,3178.8,3178.7,40.8]
[1736836065103,1.16635,3178.9,3178.7,40.8]
[1736836065505,0.29531158,3179.1,3178.7,46.53172187]
[1736836065707,4.3592,3179.4,3178.7,46.53172187]
[1736836066000,4.0445,3179.4,3178.7,46.53172187]
[1736836066207,4.3592,3179.4,3178.7,46.84648187]
[1736836066403,0.31471,3179.2,3178.7,46.53172187]
[1736836066798,6.80606214,3179.4,3178.7,44.0078]
[1736836067001,3.2078,3179.0,3178.4,0.8378]
[1736836067202,0.31478,3178.5,3178.4,0.8378]
[1736836068106,0.31478,3178.5,3178.4,41.6378]
[1736836068508,0.8297,3178.9,3178.4,41.6378]
[1736836068702,0.31477,3178.7,3178.4,41.6378]
[1736836068907,1.19697,3178.6,3178.4,41.6378]
[1736836069204,3.8501556,3179.0,3178.4,44.16172187]
[1736836069410,3.2078,3179.0,3178.5,0.8674]
[1736836070003,0.31473,3179.1,3178.5,0.8674]
[1736836070702,0.31473,3179.0,3178.5,0.8674]
[1736836071513,0.8822,3179.3,3178.5,0.8674]
[1736836071807,0.8822,3179.3,3178.4,41.6378]
[1736836071808,0.31478,3178.6,3178.4,41.6378]
[1736836072709,0.31478,3178.5,3178.4,41.6378]
[1736836072913,1.20348,3178.5,3178.4,41.6378]
[1736836073915,0.8887,3178.5,3178.4,41.6378]
[1736836074415,1.20348,3178.5,3178.4,41.6378]
[1736836074910,1.20348,3178.5,3178.4,40.8]
[1736836075824,0.31479,3178.4,3178.3,3.2078]
[1736836076016,1.19769,3178.4,3178.3,3.2078]
[1736836076817,1.19769,3178.4,3178.3,44.0078]
[1736836077814,0.8829,3178.4,3178.3,44.0078]
[1736836078113,0.64256588,3178.8,3178.3,44.0078]
[1736836078309,3.52255,3178.9,3178.5,2.52392187]
[1736836078511,3.52255,3178.9,3178.3,44.3226]
[1736836078705,0.8694,3179.1,3178.3,44.3226]
[1736836078915,0.31474,3179.0,3178.4,0.8172]
[1736836079118,0.31475,3178.9,3178.4,0.8172]
[1736836080319,0.8694,3179.1,3178.4,0.8172]
[1736836080615,1.18413,3179.1,3178.5,0.31478]
[1736836080813,1.18413,3179.1,3178.7,3.2078]
[1736836081114,3.50311158,3179.3,3178.8,2.52392187]
[1736836081322,3.2078,3179.3,3179.0,0.31473]
[1736836081614,0.8744,3179.8,3179.3,0.3147]
[1736836081821,0.8744,3179.8,3179.4,0.8688]
[1736836082115,4.67535158,3180.0,3179.4,1.18349]
[1736836082116,3.2078,3180.0,3179.4,1.18349]
[1736836082313,3.2078,3180.0,3179.9,40.8]
[1736836086413,3.52243,3180.0,3179.9,40.8]
[1736836087719,3.2078,3180.0,3179.9,40.8]
[1736836088121,3.52243,3180.0,3179.9,40.8]
[1736836098029,0.31463,3180.0,3179.9,40.8]
[1736836100032,0.55109073,3180.0,3179.9,40.8]
[1736836105936,3.50311158,3180.2,3179.9,40.8]
[1736836106137,3.2078,3180.2,3180.0,2.52392187]
[1736836106542,3.2078,3180.2,3180.1,41.682]
[1736836108638,3.52241,3180.2,3180.1,41.682]
[1736836109544,3.52241,3180.2,3179.9,0.2574]
[1736836110542,0.9214,3180.5,3180.1,40.8]
[1736836110843,0.31461,3180.3,3180.1,40.8]
[1736836113646,0.9214,3180.5,3180.1,40.8]
[1736836113948,0.31459,3180.4,3180.1,40.8]
[1736836115640,0.9214,3180.5,3180.0,5.73172187]
[1736836115841,4.1075,3180.7,3180.3,2.52392187]
[1736836116041,4.1075,3180.7,3180.6,40.8]
[1736836118445,0.8997,3180.7,3180.6,40.8]
[1736836119443,1.8141,3180.7,3180.6,40.8]
[1736836120144,2.12866,3180.7,3180.6,40.8]
[1736836120449,0.31458,3180.5,3180.4,3.2078]
[1736836120749,0.31458,3180.6,3180.4,3.2078]
[1736836121344,0.31458,3180.6,3180.5,40.8]
[1736836123057,1.10398,3180.6,3180.5,40.8]
[1736836123355,0.7894,3180.6,3180.5,40.8]
[1736836125149,1.8141,3180.7,3180.5,40.8]
[1736836126352,1.8141,3180.7,3180.4,3.2078]
[1736836127053,1.8141,3180.7,3180.6,40.8]
[1736836133964,2.12866,3180.7,3180.3,5.73172187]
[1736836134156,1.8141,3180.7,3180.3,5.73172187]
[1736836134660,1.8141,3180.7,3179.9,3.2078]
[1736836134661,5.0219,3180.7,3179.9,3.2078]
[1736836134855,0.31459,3180.5,3179.9,3.2078]
[1736836135056,0.8039,3180.4,3179.9,3.2078]
[1736836135255,1.1185,3180.4,3179.9,3.2078]
[1736836135460,1.1185,3180.4,3180.3,40.8]
[1736836136657,0.8039,3180.4,3179.4,2.52392187]
[1736836136857,3.2078,3180.1,3179.3,3.2078]
[1736836137161,0.31466,3179.8,3179.3,3.2078]
[1736836137362,1.6799,3180.0,3179.3,3.2078]
[1736836137556,0.31465,3179.9,3179.4,2.52392187]
[1736836137952,1.11465,3179.8,3179.4,2.52392187]
[1736836138159,0.8,3179.8,3179.7,40.8]
[1736836138361,1.6799,3180.0,3179.7,43.32392187]